fUSD/lending_fUSD_20240514
["ID","MTS","AMOUNT","RATE_DAILY","PERIOD"]
[327041979,1715730652488,-500.0,0.00012896,2]
[327041980,1715730652498,-500.0,0.00012896,2]
[327041981,1715730652507,-714.38,0.00012896,2]
[327041982,1715730652517,-10626.66,0.00012896,2]
[327041983,1715730652529,-1115.71,0.00012896,2]
[327041984,1715730652540,-538.29,0.00012896,2]
[327041985,1715730652550,-500.0,0.00012896,2]
[327041986,1715730652559,-2991.49,0.00012896,2]
[327041987,1715730652569,-356.54,0.00012896,2]
[327041988,1715730652579,-500.0,0.00012896,2]
[327041989,1715730652588,-500.0,0.00012896,2]
[327041990,1715730652597,-500.0,0.00012896,2]
[327041991,1715730652607,-3901.06,0.00012896,2]
[327041992,1715730652617,-593.25,0.00012896,2]
[327041993,1715730652627,-694.55,0.00012896,2]
[327041994,1715730652636,-440.2,0.00012896,2]
[327041995,1715730652646,-539.92,0.00012896,2]
[327041996,1715730652656,-500.0,0.00012896,2]
[327041997,1715730652665,-1446.8,0.00012896,2]
[327041998,1715730652674,-1261.63,0.00012896,2]
[327041999,1715730652683,-576.12,0.00012896,2]
[327042000,1715730652693,-2581.38,0.00012896,2]
[327042001,1715730652703,-500.0,0.00012896,2]
[327042002,1715730652712,-281.56,0.00012896,2]
[327042003,1715730652722,-1858.73,0.00012896,2]
[327042004,1715730652731,-500.0,0.00012896,2]
[327042005,1715730652740,-342.61,0.00012896,2]
[327042006,1715730652750,-500.0,0.00012896,2]
[327042007,1715730652759,-297.36,0.00012896,2]
[327042008,1715730652768,-500.0,0.00012896,2]
[327042009,1715730652778,-500.0,0.00012896,2]
[327042010,1715730652787,-23767.88,0.00012896,2]
[327042011,1715730652797,-500.0,0.00012896,2]
[327042012,1715730652806,-330.42,0.00012896,2]
[327042013,1715730652816,-225475.40283778,0.00012897,2]
[327042014,1715730652825,-206.82894028,0.00012898,2]
[327042015,1715730652835,-357.077348,0.00012918,2]
[327042016,1715730652845,-2114.017956,0.00012918,2]
[327042017,1715730652855,-686.8984,0.00012934,2]
[327042018,1715730652864,-500.0,0.00012943,2]
[327042019,1715730652874,-500.0,0.00012943,2]
[327042020,1715730652883,-3725.51,0.00012943,2]
[327042021,1715730652893,-500.0,0.00012943,2]
[327042022,1715730652902,-431.16,0.00012943,2]
[327042023,1715730652911,-1493.75,0.00012943,2]
[327042024,1715730652922,-500.0,0.00012943,2]
[327042025,1715730652931,-500.0,0.00012943,2]
[327042026,1715730652941,-416.07,0.00012943,2]
[327042027,1715730652950,-625.29,0.00012943,2]
[327042028,1715730652959,-500.0,0.00012943,2]
[327042029,1715730652968,-500.0,0.00012943,2]
[327042030,1715730652978,-500.0,0.00012943,2]
[327042031,1715730652988,-500.0,0.00012943,2]
[327042032,1715730652997,-892.13,0.00012943,2]
[327042033,1715730653007,-500.0,0.00012943,2]
[327042034,1715730653016,-500.0,0.00012943,2]
[327042035,1715730653026,-500.0,0.00012943,2]
[327042036,1715730653035,-500.0,0.00012943,2]
[327042037,1715730653045,-500.0,0.00012943,2]
[327042038,1715730653054,-1363.52,0.00012943,2]
[327042039,1715730653063,-500.0,0.00012943,2]
[327042040,1715730653072,-500.0,0.00012943,2]
[327042041,1715730653083,-500.0,0.00012943,2]
[327042042,1715730653092,-500.0,0.00012943,2]
[327042043,1715730653102,-500.0,0.00012943,2]
[327042044,1715730653111,-650.66,0.00012943,2]
[327042045,1715730653120,-1167.67,0.00012943,2]
[327042046,1715730653130,-500.0,0.00012943,2]
[327042047,1715730653139,-549.11,0.00012943,2]
[327042048,1715730653148,-500.0,0.00012943,2]
[327042049,1715730653157,-500.0,0.00012943,2]
[327042050,1715730653167,-1320.2,0.00012943,2]
[327042051,1715730653176,-1491.86,0.00012943,2]
[327042052,1715730653184,-500.0,0.00012943,2]
[327042053,1715730653193,-500.0,0.00012943,2]
[327042054,1715730653202,-2996.08,0.00012943,2]
[327042055,1715730653211,-1860.29,0.00012943,2]
[327042056,1715730653221,-8991.47,0.00012943,2]
[327042057,1715730653230,-1642.26,0.00012943,2]
[327042058,1715730653239,-1079.53,0.00012943,2]
[327042059,1715730653248,-500.0,0.00012943,2]
[327042060,1715730653256,-714.38,0.00012943,2]
[327042061,1715730653266,-10626.66,0.00012943,2]
[327042062,1715730653275,-1115.71,0.00012943,2]
[327042063,1715730653284,-2991.49,0.00012943,2]
[327042064,1715730653294,-500.0,0.00012943,2]
[327042065,1715730653302,-500.0,0.00012943,2]
[327042066,1715730653311,-3901.06,0.00012943,2]
[327042067,1715730653321,-694.55,0.00012943,2]
[327042068,1715730653331,-500.0,0.00012943,2]
[327042069,1715730653340,-1446.8,0.00012943,2]
[327042070,1715730653350,-1261.63,0.00012943,2]
[327042071,1715730653359,-500.0,0.00012943,2]
[327042072,1715730653369,-1858.73,0.00012943,2]
[327042073,1715730653378,-23767.88,0.00012943,2]
[327042074,1715730653387,-500.0,0.00012943,2]
[327042075,1715730653396,-500.0,0.00012944,2]
[327042076,1715730653406,-500.0,0.00012944,2]
[327042077,1715730653415,-500.0,0.00012944,2]
[327042078,1715730653425,-500.0,0.00012944,2]
[327042079,1715730653435,-500.0,0.00012944,2]
[327042080,1715730653444,-500.0,0.00012944,2]
[327042081,1715730653459,-500.0,0.00012944,2]
[327042082,1715730653468,-500.0,0.00012944,2]
[327042083,1715730653477,-500.0,0.00012944,2]
[327042084,1715730653487,-3840.11,0.00012944,2]
[327042085,1715730653499,-1447.49,0.00012944,2]
[327042086,1715730653508,-1405.71,0.00012944,2]
[327042087,1715730653518,-500.0,0.00012944,2]
[327042088,1715730653528,-500.0,0.00012944,2]
[327042089,1715730653537,-4034.86,0.00012944,2]
[327042090,1715730653548,-500.0,0.00012944,2]
[327042091,1715730653557,-2047.51,0.00012944,2]
[327042092,1715730653566,-500.0,0.00012944,2]
[327042093,1715730653577,-500.0,0.00012944,2]
[327042094,1715730653586,-500.0,0.00012944,2]
[327042095,1715730653595,-957.16,0.00012944,2]
[327042096,1715730653604,-845.98,0.00012944,2]
[327042097,1715730653614,-679.0,0.00012944,2]
[327042098,1715730653625,-403.22,0.00012945,2]
[327042099,1715730653635,-377.9,0.00012945,2]
[327042100,1715730653644,-329.6,0.00012945,2]
[327042101,1715730653654,-225.76,0.00012945,2]
[327042102,1715730653663,-507.97,0.00012945,2]
[327042103,1715730653672,-409.4,0.00012945,2]
[327042104,1715730653682,-183.17,0.00012945,2]
[327042105,1715730653692,-432.66,0.00012945,2]
[327042106,1715730653701,-509.76,0.00012945,2]
[327042107,1715730653711,-183.02,0.00012945,2]
[327042108,1715730653721,-181.05,0.00012945,2]
[327042109,1715730653731,-377.33,0.00012945,2]
[327042110,1715730653740,-465.16,0.00012945,2]
[327042111,1715730653750,-495.27419299,0.00012945,2]
[327042112,1715730653760,-559.72,0.00012945,2]
[327042113,1715730653771,-581.29,0.00012945,2]
[327042114,1715730653780,-153.8,0.00012945,2]
[327042115,1715730653789,-301.06,0.00012945,2]
[327042116,1715730653799,-276.59,0.00012945,2]
[327042117,1715730653809,-522.1,0.00012945,2]
[327042118,1715730653818,-155.1368449,0.00012945,2]
[327042119,1715730653832,-292.83,0.00012945,2]
[327042120,1715730653846,-389.58,0.00012945,2]
[327042121,1715730653861,-234.77,0.00012945,2]
[327042122,1715730653875,-398.79,0.00012945,2]
[327042123,1715730653886,-464.4,0.00012945,2]
[327042124,1715730653898,-162.83,0.00012945,2]
[327042125,1715730653912,-290.18,0.00012945,2]
[327042126,1715730653923,-387.86,0.00012945,2]
[327042127,1715730653937,-435.28,0.00012945,2]
[327042128,1715730653951,-320.56,0.00012945,2]
[327042129,1715730653963,-477.85,0.00012945,2]
[327042130,1715730653978,-500.0,0.00012945,2]
[327042131,1715730653992,-500.0,0.00012945,2]
[327042132,1715730654004,-500.0,0.00012945,2]
[327042133,1715730654017,-500.0,0.00012945,2]
[327042134,1715730654029,-578.4,0.00012945,2]
[327042135,1715730654040,-500.0,0.00012945,2]
[327042136,1715730654054,-308.68,0.00012945,2]
[327042137,1715730654066,-500.0,0.00012945,2]
[327042138,1715730654079,-500.0,0.00012945,2]
[327042139,1715730654090,-210.23,0.00012945,2]
[327042140,1715730654101,-548.96,0.00012945,2]
[327042141,1715730654112,-575.64,0.00012945,2]
[327042142,1715730654124,-500.0,0.00012945,2]
[327042143,1715730654137,-500.0,0.00012945,2]
[327042144,1715730654151,-500.0,0.00012945,2]
[327042145,1715730654163,-500.0,0.00012945,2]
[327042146,1715730654175,-500.0,0.00012945,2]
[327042147,1715730654189,-153.33,0.00012945,2]
[327042148,1715730654203,-528.74,0.00012945,2]
[327042149,1715730654216,-324.76,0.00012945,2]
[327042150,1715730654227,-501.19,0.00012945,2]
[327042151,1715730654237,-500.0,0.00012945,2]
[327042152,1715730654248,-244.62,0.00012945,2]
[327042153,1715730654259,-272.54,0.00012945,2]
[327042154,1715730654272,-266.08,0.00012945,2]
[327042155,1715730654285,-500.0,0.00012945,2]
[327042156,1715730654299,-616.57,0.00012945,2]
[327042157,1715730654309,-500.0,0.00012945,2]
[327042158,1715730654321,-500.0,0.00012945,2]
[327042159,1715730654332,-256.92,0.00012945,2]
[327042160,1715730654345,-500.0,0.00012945,2]
[327042161,1715730654357,-500.0,0.00012945,2]
[327042162,1715730654369,-202.6,0.00012945,2]
[327042163,1715730654380,-500.0,0.00012945,2]
[327042164,1715730654391,-500.0,0.00012945,2]
[327042165,1715730654402,-500.0,0.00012945,2]
[327042166,1715730654413,-500.0,0.00012945,2]
[327042167,1715730654425,-218.96,0.00012945,2]
[327042168,1715730654436,-500.0,0.00012945,2]
[327042169,1715730654448,-425.37,0.00012945,2]
[327042170,1715730654462,-500.0,0.00012945,2]
[327042171,1715730654474,-500.0,0.00012945,2]
[327042172,1715730654485,-500.0,0.00012945,2]
[327042173,1715730654499,-500.0,0.00012945,2]
[327042174,1715730654511,-500.0,0.00012945,2]
[327042175,1715730654522,-500.0,0.00012945,2]
[327042176,1715730654534,-500.0,0.00012945,2]
[327042177,1715730654545,-500.0,0.00012945,2]
[327042178,1715730654557,-150.0,0.00012945,2]
[327042179,1715730654569,-648.26,0.00012945,2]
[327042180,1715730654581,-583.25,0.00012945,2]
[327042181,1715730654591,-500.0,0.00012945,2]
[327042182,1715730654603,-500.0,0.00012945,2]
[327042183,1715730654615,-500.0,0.00012945,2]
[327042184,1715730654627,-2070.71,0.00012945,2]
[327042185,1715730654638,-500.0,0.00012945,2]
[327042186,1715730654650,-168.05,0.00012945,2]
[327042187,1715730654662,-500.0,0.00012945,2]
[327042188,1715730654673,-500.0,0.00012945,2]
[327042189,1715730654685,-500.0,0.00012945,2]
[327042190,1715730654697,-500.0,0.00012945,2]
[327042191,1715730654708,-500.0,0.00012945,2]
[327042192,1715730654720,-238.78,0.00012945,2]
[327042193,1715730654732,-500.0,0.00012945,2]
[327042194,1715730654744,-387.35,0.00012945,2]
[327042195,1715730654756,-500.0,0.00012945,2]
[327042196,1715730654767,-500.0,0.00012945,2]
[327042197,1715730654779,-500.0,0.00012945,2]
[327042198,1715730654791,-382.28,0.00012945,2]
[327042199,1715730654803,-520.79,0.00012945,2]
[327042200,1715730654815,-604.13,0.00012945,2]
[327042201,1715730654827,-500.0,0.00012945,2]
[327042202,1715730654838,-500.0,0.00012945,2]
[327042203,1715730654850,-500.0,0.00012945,2]
[327042204,1715730654861,-307.72,0.00012945,2]
[327042205,1715730654872,-300.82,0.00012945,2]
[327042206,1715730654883,-265.35,0.00012945,2]
[327042207,1715730654895,-500.0,0.00012945,2]
[327042208,1715730654907,-500.0,0.00012945,2]
[327042209,1715730654917,-415.45,0.00012945,2]
[327042210,1715730654929,-500.0,0.00012945,2]
[327042211,1715730654943,-500.0,0.00012945,2]
[327042212,1715730654955,-500.0,0.00012945,2]
[327042213,1715730654966,-522.8,0.00012945,2]
[327042214,1715730654978,-383.21,0.00012945,2]
[327042215,1715730654990,-500.0,0.00012945,2]
[327042216,1715730655001,-454.9,0.00012945,2]
[327042217,1715730655013,-410.6,0.00012945,2]
[327042218,1715730655024,-500.0,0.00012945,2]
[327042219,1715730655036,-331.97,0.00012945,2]
[327042220,1715730655048,-500.0,0.00012945,2]
[327042221,1715730655059,-342.01,0.00012945,2]
[327042222,1715730655070,-237.52,0.00012945,2]
[327042223,1715730655082,-500.0,0.00012945,2]
[327042224,1715730655094,-607.35,0.00012945,2]
[327042225,1715730655105,-500.0,0.00012945,2]
[327042226,1715730655116,-500.0,0.00012945,2]
[327042227,1715730655128,-500.0,0.00012945,2]
[327042228,1715730655140,-544.27,0.00012945,2]
[327042229,1715730655151,-168.46,0.00012945,2]
[327042230,1715730655163,-500.0,0.00012945,2]
[327042231,1715730655175,-171.81,0.00012945,2]
[327042232,1715730655186,-230.89,0.00012945,2]
[327042233,1715730655198,-500.0,0.00012945,2]
[327042234,1715730655209,-216.53,0.00012945,2]
[327042235,1715730655221,-500.0,0.00012945,2]
[327042236,1715730655232,-421.62,0.00012945,2]
[327042237,1715730655244,-500.0,0.00012945,2]
[327042238,1715730655254,-326.85,0.00012945,2]
[327042239,1715730655266,-351.94,0.00012945,2]
[327042240,1715730655277,-500.0,0.00012945,2]
[327042241,1715730655288,-211.25,0.00012945,2]
[327042242,1715730655300,-500.0,0.00012945,2]
[327042243,1715730655312,-179.46,0.00012945,2]
[327042244,1715730655323,-304.46,0.00012945,2]
[327042245,1715730655336,-163.83,0.00012945,2]
[327042246,1715730655348,-500.0,0.00012945,2]
[327042247,1715730655359,-289.71,0.00012945,2]
[327042248,1715730655370,-500.0,0.00012945,2]
[327042249,1715730655382,-374.84435102,0.00012945,2]
[327042250,1715730655393,-387.81,0.00012945,2]
[327042251,1715730655404,-494.1,0.00012945,2]
[327042252,1715730655415,-539.6144303,0.00012945,2]
[327042253,1715730655427,-182.1,0.00012945,2]
[327042254,1715730655438,-500.0,0.00012945,2]
[327042255,1715730655452,-478.16,0.00012945,2]
[327042256,1715730655465,-186.45,0.00012945,2]
[327042257,1715730655476,-263.25,0.00012945,2]
[327042258,1715730655488,-500.0,0.00012945,2]
[327042259,1715730655502,-270.98,0.00012945,2]
[327042260,1715730655514,-710.0,0.00012946,2]
[327042261,1715730655526,-944.83197217,0.0001297,2]
[327042262,1715730655537,-500.0,0.00012977,2]
[327042263,1715730655549,-500.0,0.00012978,2]
[327042264,1715730655559,-168.75,0.00012978,2]
[327042265,1715730655571,-500.0,0.00012978,2]
[327042266,1715730655582,-500.0,0.00012978,2]
[327042267,1715730655593,-500.0,0.00012978,2]
[327042268,1715730655604,-500.0,0.00012978,2]
[327042269,1715730655616,-226.72,0.00012978,2]
[327042270,1715730655627,-326.72,0.00012978,2]
[327042271,1715730655638,-500.0,0.00012978,2]
[327042272,1715730655649,-500.0,0.00012978,2]
[327042273,1715730655661,-500.0,0.00012978,2]
[327042274,1715730655672,-584.1,0.00012978,2]
[327042275,1715730655684,-645.57,0.00012978,2]
[327042276,1715730655696,-500.0,0.00012978,2]
[327042277,1715730655708,-500.0,0.00012978,2]
[327042278,1715730655719,-3725.51,0.00012978,2]
[327042279,1715730655730,-500.0,0.00012978,2]
[327042280,1715730655742,-500.0,0.00012978,2]
[327042281,1715730655754,-1493.75,0.00012978,2]
[327042282,1715730655766,-500.0,0.00012978,2]
[327042283,1715730655779,-6653.84,0.00012978,2]
[327042284,1715730655791,-500.0,0.00012978,2]
[327042285,1715730655802,-500.0,0.00012978,2]
[327042286,1715730656022,-625.29,0.00012978,2]
[327042287,1715730656045,-500.0,0.00012978,2]
[327042288,1715730656055,-500.0,0.00012978,2]
[327042289,1715730656064,-500.0,0.00012978,2]
[327042290,1715730656074,-500.0,0.00012978,2]
[327042291,1715730656084,-500.0,0.00012978,2]
[327042292,1715730656094,-161.61,0.00012978,2]
[327042293,1715730656104,-500.0,0.00012978,2]
[327042294,1715730656113,-892.13,0.00012978,2]
[327042295,1715730656123,-500.0,0.00012978,2]
[327042296,1715730656132,-500.0,0.00012978,2]
[327042297,1715730656141,-500.0,0.00012978,2]
[327042298,1715730656151,-552.03827451,0.00012978,2]
[327042299,1715730656161,-500.0,0.00012978,2]
[327042300,1715730656169,-500.0,0.00012978,2]
[327042301,1715730656178,-417.55,0.00012978,2]
[327042302,1715730656187,-495.03,0.00012978,2]
[327042303,1715730656197,-500.0,0.00012978,2]
[327042304,1715730656207,-500.0,0.00012978,2]
[327042305,1715730656216,-1363.52,0.00012978,2]
[327042306,1715730656225,-886.75,0.00012978,2]
[327042307,1715730656234,-500.0,0.00012978,2]
[327042308,1715730656243,-500.0,0.00012978,2]
[327042309,1715730656252,-638.97,0.00012978,2]
[327042310,1715730656261,-500.0,0.00012978,2]
[327042311,1715730656270,-500.0,0.00012978,2]
[327042312,1715730656279,-500.0,0.00012978,2]
[327042313,1715730656288,-650.66,0.00012978,2]
[327042314,1715730656297,-1167.67,0.00012978,2]
[327042315,1715730656306,-500.0,0.00012978,2]
[327042316,1715730656315,-698.45,0.00012978,2]
[327042317,1715730656325,-500.0,0.00012978,2]
[327042318,1715730656334,-500.0,0.00012978,2]
[327042319,1715730656343,-500.0,0.00012978,2]
[327042320,1715730656352,-1320.2,0.00012978,2]
[327042321,1715730656361,-647.4,0.00012978,2]
[327042322,1715730656371,-525.8,0.00012978,2]
[327042323,1715730656379,-1491.86,0.00012978,2]
[327042324,1715730656388,-500.0,0.00012978,2]
[327042325,1715730656398,-500.0,0.00012978,2]
[327042326,1715730656407,-500.0,0.00012978,2]
[327042327,1715730656416,-503.72,0.00012978,2]
[327042328,1715730656444,-500.0,0.00012978,2]
[327042329,1715730656458,-2996.08,0.00012978,2]
[327042330,1715730656467,-1860.29,0.00012978,2]
[327042331,1715730656476,-629.11,0.00012978,2]
[327042332,1715730656485,-536.06,0.00012978,2]
[327042333,1715730656495,-8991.47,0.00012978,2]
[327042334,1715730656505,-1642.26,0.00012978,2]
[327042335,1715730656514,-1079.53,0.00012978,2]
[327042336,1715730656523,-500.0,0.00012978,2]
[327042337,1715730656533,-310.67,0.00012978,2]
[327042338,1715730656542,-714.38,0.00012978,2]
[327042339,1715730656552,-10626.66,0.00012978,2]
[327042340,1715730656561,-1115.71,0.00012978,2]
[327042341,1715730656570,-538.29,0.00012978,2]
[327042342,1715730656579,-2991.49,0.00012978,2]
[327042343,1715730656588,-500.0,0.00012978,2]
[327042344,1715730656597,-500.0,0.00012978,2]
[327042345,1715730656606,-3901.06,0.00012978,2]
[327042346,1715730656615,-593.25,0.00012978,2]
[327042347,1715730656624,-694.55,0.00012978,2]
[327042348,1715730656633,-500.0,0.00012978,2]
[327042349,1715730656642,-1446.8,0.00012978,2]
[327042350,1715730656652,-1261.63,0.00012978,2]
[327042351,1715730656661,-2581.38,0.00012978,2]
[327042352,1715730656670,-500.0,0.00012978,2]
[327042353,1715730656679,-1858.73,0.00012978,2]
[327042354,1715730656689,-294.62,0.00012978,2]
[327042355,1715730656698,-500.0,0.00012978,2]
[327042356,1715730656707,-23767.88,0.00012978,2]
[327042357,1715730656716,-500.0,0.00012978,2]
[327042358,1715730656725,-500.0,0.00012979,2]
[327042359,1715730656734,-548.17,0.00012979,2]
[327042360,1715730656743,-548.06,0.00012979,2]
[327042361,1715730656752,-500.0,0.00012979,2]
[327042362,1715730656761,-500.0,0.00012979,2]
[327042363,1715730656770,-260.64,0.00012979,2]
[327042364,1715730656779,-343.14,0.00012979,2]
[327042365,1715730656789,-323.39,0.00012979,2]
[327042366,1715730656800,-500.0,0.00012979,2]
[327042367,1715730656809,-489.69,0.00012979,2]
[327042368,1715730656818,-500.0,0.00012979,2]
[327042369,1715730656828,-500.0,0.00012979,2]
[327042370,1715730656839,-500.0,0.00012979,2]
[327042371,1715730656851,-500.0,0.00012979,2]
[327042372,1715730656861,-265.93,0.00012979,2]
[327042373,1715730656871,-500.0,0.00012979,2]
[327042374,1715730656880,-500.0,0.00012979,2]
[327042375,1715730656889,-500.0,0.00012979,2]
[327042376,1715730656899,-271.3,0.00012979,2]
[327042377,1715730656908,-486.95,0.00012979,2]
[327042378,1715730656920,-634.05,0.00012979,2]
[327042379,1715730656929,-500.0,0.00012979,2]
[327042380,1715730656938,-292.29,0.00012979,2]
[327042381,1715730656947,-500.0,0.00012979,2]
[327042382,1715730656956,-500.0,0.00012979,2]
[327042383,1715730656965,-500.0,0.00012979,2]
[327042384,1715730656974,-500.0,0.00012979,2]
[327042385,1715730656983,-500.0,0.00012979,2]
[327042386,1715730656992,-500.0,0.00012979,2]
[327042387,1715730657001,-500.0,0.00012979,2]
[327042388,1715730657010,-500.0,0.00012979,2]
[327042389,1715730657019,-500.0,0.00012979,2]
[327042390,1715730657029,-198.9,0.00012979,2]
[327042391,1715730657038,-503.77,0.00012979,2]
[327042392,1715730657047,-244.47,0.00012979,2]
[327042393,1715730657056,-271.35,0.00012979,2]
[327042394,1715730657066,-500.0,0.00012979,2]
[327042395,1715730657075,-473.97,0.00012979,2]
[327042396,1715730657084,-500.0,0.00012979,2]
[327042397,1715730657093,-500.0,0.00012979,2]
[327042398,1715730657103,-201.47,0.00012979,2]
[327042399,1715730657112,-445.3,0.00012979,2]
[327042400,1715730657121,-500.0,0.00012979,2]
[327042401,1715730657130,-205.11,0.00012979,2]
[327042402,1715730657140,-422.49,0.00012979,2]
[327042403,1715730657149,-524.4,0.00012979,2]
[327042404,1715730657158,-560.23,0.00012979,2]
[327042405,1715730657167,-500.0,0.00012979,2]
[327042406,1715730657177,-439.66,0.00012979,2]
[327042407,1715730657186,-489.35,0.00012979,2]
[327042408,1715730657196,-284.31,0.00012979,2]
[327042409,1715730657206,-488.49,0.00012979,2]
[327042410,1715730657215,-500.0,0.00012979,2]
[327042411,1715730657225,-500.0,0.00012979,2]
[327042412,1715730657234,-431.08,0.00012979,2]
[327042413,1715730657245,-430.53,0.00012979,2]
[327042414,1715730657256,-500.0,0.00012979,2]
[327042415,1715730657266,-205.19,0.00012979,2]
[327042416,1715730657276,-500.0,0.00012979,2]
[327042417,1715730657286,-973.0,0.00012979,2]
[327042418,1715730657297,-1398.0,0.00012979,2]
[327042419,1715730657308,-2157.0,0.00012979,2]
[327042420,1715730657319,-543.0,0.00012979,2]
[327042421,1715730657328,-1225.0,0.00012979,2]
[327042422,1715730657339,-1261.0,0.00012979,2]
[327042423,1715730657348,-1790.0,0.00012979,2]
[327042424,1715730657359,-253.0,0.00012979,2]
[327042425,1715730657368,-438.0,0.00012979,2]
[327042426,1715730657378,-422.0,0.00012979,2]
[327042427,1715730657387,-809.0,0.00012979,2]
[327042428,1715730657397,-612.0,0.00012979,2]
[327042429,1715730657408,-2433.0,0.00012979,2]
[327042430,1715730657417,-1646.0,0.00012979,2]
[327042431,1715730657427,-150.0,0.00012979,2]
[327042432,1715730657437,-150.0,0.00012979,2]
[327042433,1715730657448,-215.0,0.00012979,2]
[327042434,1715730657462,-3156.0,0.00012979,2]
[327042435,1715730657473,-1138.0,0.00012979,2]
[327042436,1715730657483,-444.0,0.00012979,2]
[327042437,1715730657494,-250.0,0.00012979,2]
[327042438,1715730657504,-288.0,0.00012979,2]
[327042439,1715730657513,-1047.0,0.00012979,2]
[327042440,1715730657523,-5911.0,0.00012979,2]
[327042441,1715730657534,-150.0,0.00012979,2]
[327042442,1715730657545,-5749.0,0.00012979,2]
[327042443,1715730657555,-37831.0,0.00012979,2]
[327042444,1715730657564,-1059.0,0.00012979,2]
[327042445,1715730657574,-150.0,0.00012979,2]
[327042446,1715730657583,-201.31884009,0.00012986,2]
[327042447,1715730657593,-175.47369555,0.00012992,2]
[327042448,1715730657603,-155.07331885,0.00012992,2]
[327042449,1715730657612,-158.64440687,0.00012992,2]
[327042450,1715730657622,-155.23191526,0.00012992,2]
[327042451,1715730657632,-263.45763516,0.00012992,2]
[327042452,1715730657642,-500.0,0.00012992,2]
[327042453,1715730657652,-3840.11,0.00012992,2]
[327042454,1715730657662,-500.0,0.00012992,2]
[327042455,1715730657672,-500.0,0.00012992,2]
[327042456,1715730657681,-500.0,0.00012992,2]
[327042457,1715730657691,-589.49,0.00012993,2]
[327042458,1715730657700,-283.54389279,0.00012993,2]
[327042459,1715730657710,-500.0,0.00012993,2]
[327042460,1715730657719,-337.83,0.00012993,2]
[327042461,1715730657728,-500.0,0.00012993,2]
[327042462,1715730657738,-178.56,0.00012993,2]
[327042463,1715730657747,-358.15,0.00012993,2]
[327042464,1715730657757,-500.0,0.00012993,2]
[327042465,1715730657766,-507.23,0.00012993,2]
[327042466,1715730657776,-500.0,0.00012993,2]
[327042467,1715730657786,-152.71,0.00012993,2]
[327042468,1715730657795,-287.68,0.00012993,2]
[327042469,1715730657804,-277.69,0.00012993,2]
[327042470,1715730657814,-500.0,0.00012993,2]
[327042471,1715730657823,-557.96,0.00012993,2]
[327042472,1715730657834,-500.0,0.00012993,2]
[327042473,1715730657843,-406.31,0.00012993,2]
[327042474,1715730657853,-154.84,0.00012993,2]
[327042475,1715730657862,-357.39,0.00012993,2]
[327042476,1715730657871,-500.0,0.00012993,2]
[327042477,1715730657882,-648.08,0.00012993,2]
[327042478,1715730657893,-175.77,0.00012993,2]